[Event "Romanian Women Championship 2024"]
[Site "Eforie Nord"]
[Date "2024.02.28"]
[Round "6.8"]
[White "Paraschiv, Petronela-Alexandra"]
[Black "Vorniceanu, Alina"]
[Result "1/2-1/2"]
[ECO "A45"]
[WhiteElo "1875"]
[BlackElo "1476"]
[Annotator "NA RC"]
[PlyCount "49"]
[EventDate "2024.02.24"]
[EventType "swiss"]
[EventCountry "ROU"]
[SourceTitle "playchess.com"]
[Source "ChessBase"]
[SourceQuality "1"]
[TimeControl "40/5400+30:900+30"]

1. d4 {[%emt 0:00:03]} Nf6 {[%emt 0:00:08]} 2. Bf4 {[%emt 0:00:04]} c6 {[%emt 0:00:04]} 3. e3 {[%emt 0:01:12]} Qb6 {[%emt 0:00:05]} 4. Qc1 {[%emt 0:01:30]} Nh5 {[%emt 0:00:07]} 5. Bg3 {[%emt 0:02:12]} Nxg3 {[%emt 0:00:08]} 6. hxg3 {[%emt 0:00:02]} g6 {[%emt 0:00:06]} 7. Nf3 {[%emt 0:01:59]} d6 {[%emt 0:01:09]} 8. Nbd2 {[%emt 0:01:50]} Bg7 {[%emt 0:00:19]} 9. c3 {[%emt 0:04:39]} Nd7 {[%emt 0:01:49]} 10. Nc4 {[%emt 0:01:40]} Qc7 {[%emt 0:00:06]} 11. a4 {[%emt 0:00:38]} a5 {[%emt 0:03:55]} 12. Bd3 {[%emt 0:05:55]} d5 {[%emt 0:05:06]} 13. Ncd2 {[%emt 0:00:54]} e5 {[%emt 0:00:23]} 14. dxe5 {[%emt 0:00:45]} Nxe5 {[%emt 0:01:12]} 15. Nxe5 {[%emt 0:00:28]} Qxe5 {[%emt 0:01:57]} 16. Nf3 {[%emt 0:01:30]} Qd6 {[%emt 0:00:51]} 17. Qc2 {[%emt 0:01:45]} Bd7 {[%emt 0:02:07]} 18. O-O {[%emt 0:10:39]} O-O {[%emt 0:02:56]} 19. e4 {[%emt 0:03:14]} Be6 {[%emt 0:05:59]} 20. Rad1 {[%emt 0:03:55]} Qc7 {[%emt 0:00:41]} 21. exd5 {[%emt 0:08:57]} Bxd5 {[%emt 0:00:12]} 22. Be4 {[%emt 0:02:24]} Bc4 {[%emt 0:03:29]} 23. Bd3 {[%emt 0:04:36]} Bd5 {[%emt 0:02:47]} 24. Be4 {[%emt 0:14:55]} Bc4 {[%emt 0:00:11]} 25. Bd3 {[%emt 0:02:53]} 1/2-1/2

[Event "Romanian Women Championship 2024"]
[Site "Eforie Nord"]
[Date "2024.02.28"]
[Round "6.9"]
[White "Stanciu, Andreea-Briana"]
[Black "Aldea, Maria-Antonia"]
[Result "1/2-1/2"]
[ECO "A03"]
[WhiteElo "1960"]
[BlackElo "1726"]
[Annotator "RC"]
[PlyCount "132"]
[EventDate "2024.02.24"]
[EventType "swiss"]
[EventCountry "ROU"]
[SourceTitle "playchess.com"]
[Source "ChessBase"]
[SourceQuality "1"]
[TimeControl "40/5400+30:900+30"]

1. f4 {[%emt 0:01:26]} d5 {[%emt 0:00:24]} 2. b3 {[%emt 0:00:08]} Nf6 {[%emt 0:02:27]} 3. Bb2 {[%emt 0:00:06]} g6 {[%emt 0:01:19]} 4. Bxf6 {[%emt 0:01:51]} exf6 {[%emt 0:00:04]} 5. e3 {[%emt 0:00:14]} Bg7 {[%emt 0:00:06]} 6. Nf3 {[%emt 0:02:17]} O-O {[%emt 0:02:05]} 7. c4 {[%emt 0:03:10]} c6 {[%emt 0:03:06]} 8. Nc3 {[%emt 0:03:23]} Re8 {[%emt 0:01:56]} 9. cxd5 {[%emt 0:04:07]} cxd5 {[%emt 1:23:33]} 10. Bb5 {[%emt 0:00:10]} Nc6 {[%emt 0:00:00]} 11. O-O {[%emt 0:01:24]} a6 {[%emt 0:00:00]} 12. Bxc6 {[%emt 0:06:00]} bxc6 {[%emt 0:00:00]} 13. Na4 {[%emt 0:00:07]} Bg4 {[%emt 0:00:00]} 14. h3 {[%emt 0:05:40]} Bxf3 {[%emt 0:00:00]} 15. Qxf3 {[%emt 0:00:05]} Qd6 {[%emt 0:00:00]} 16. Rac1 {[%emt 0:03:29]} Re7 {[%emt 0:00:00]} 17. Rc2 {[%emt 0:03:54]} Rc8 {[%emt 0:00:00]} 18. Rfc1 {[%emt 0:03:55]} f5 {[%emt 0:00:00]} 19. Nb6 {[%emt 0:15:17]} Rcc7 {[%emt 0:00:00]} 20. d4 {[%emt 0:00:05]} Re4 {[%emt 0:00:00]} 21. Kh2 {[%emt 0:03:47]} Qe6 {[%emt 0:00:00]} 22. Rc3 {[%emt 0:01:16]} Bf8 {[%emt 0:00:00]} 23. R1c2 {[%emt 0:07:42]} Bb4 {[%emt 0:00:00]} 24. Rd3 {[%emt 0:00:06]} Re7 {[%emt 0:00:00]} 25. Na4 {[%emt 0:04:48]} Qc8 {[%emt 0:00:00]} 26. a3 {[%emt 0:08:19]} Bxa3 {[%emt 0:00:00]} 27. Nc3 {[%emt 0:00:06]} Qe8 {[%emt 0:00:00]} 28. Nd1 {[%emt 0:05:14]} Bb4 {[%emt 0:00:00]} 29. g4 {[%emt 0:01:20]} fxg4 {[%emt 0:00:00]} 30. hxg4 {[%emt 0:00:05]} f5 {[%emt 0:00:00]} 31. gxf5 {[%emt 0:02:03]} gxf5 {[%emt 0:00:00]} 32. Rg2+ {[%emt 0:02:22]} Kh8 {[%emt 0:00:00]} 33. Qh3 {[%emt 0:01:10]} Qf8 {[%emt 0:00:00]} 34. Rg5 {[%emt 0:01:33]} Rf7 {[%emt 0:00:00]} 35. Nf2 {[%emt 0:04:08]} Re6 {[%emt 0:00:00]} 36. Rh5 {[%emt 0:00:07]} Rg6 {[%emt 0:01:05]} 37. Rd1 {[%emt 0:02:01]} Bd6 {[%emt 0:02:25]} 38. Nd3 {[%emt 0:04:10]} Qc8 {[%emt 0:05:15]} 39. Rf1 {[%emt 0:01:20]} Rg4 {[%emt 0:04:13]} 40. Nf2 {[%emt 0:00:00]} Rg6 {[%emt 0:00:00]} 41. Nd3 {[%emt 0:01:37]} Rgg7 {[%emt 0:04:30]} 42. Ne5 {[%emt 0:01:45]} Rf6 {[%emt 0:02:57]} 43. Rg1 {[%emt 0:03:34]} Qg8 {[%emt 0:03:54]} 44. Rxg7 {[%emt 0:01:49]} Qxg7 {[%emt 0:00:12]} 45. Rxf5 {[%emt 0:00:11]} Bxe5 {[%emt 0:02:50]} 46. fxe5 {[%emt 0:04:01]} Rxf5 {[%emt 0:04:55]} 47. Qxf5 {[%emt 0:00:06]} Qh6+ {[%emt 0:00:03]} 48. Kg2 {[%emt 0:00:43]} Qg6+ {[%emt 0:01:16]} 49. Qxg6 {[%emt 0:00:05]} hxg6 {[%emt 0:01:25]} 50. b4 {[%emt 0:08:14]} Kg7 {[%emt 0:00:30]} 51. Kf3 {[%emt 0:00:30]} g5 {[%emt 0:00:30]} 52. e4 {[%emt 0:00:00]} Kf7 {[%emt 0:00:00]} 53. exd5 {[%emt 0:00:00]} cxd5 {[%emt 0:01:00]} 54. Kg3 {[%emt 0:00:53]} Kg7 {[%emt 0:00:30]} 55. Kf2 {[%emt 0:01:07]} Kf7 {[%emt 0:00:00]} 56. Kf3 {[%emt 0:00:00]} Kg7 {[%emt 0:01:00]} 57. Kg3 {[%emt 0:01:00]} Kf7 {[%emt 0:00:00]} 58. Kg4 {[%emt 0:00:30]} Kg6 {[%emt 0:01:00]} 59. e6 {[%emt 0:00:00]} Kf6 {[%emt 0:00:00]} 60. e7 {[%emt 0:00:00]} Kxe7 {[%emt 0:00:00]} 61. Kxg5 {[%emt 0:00:00]} Ke6 {[%emt 0:00:00]} 62. Kg6 {[%emt 0:00:00]} Ke7 {[%emt 0:00:52]} 63. Kf5 {[%emt 0:00:00]} Kd6 {[%emt 0:00:07]} 64. Kf6 {[%emt 0:00:00]} Kd7 {[%emt 0:00:37]} 65. Ke5 {[%emt 0:00:00]} Kc6 {[%emt 0:00:02]} 66. Ke6 {[%emt 0:00:00]} Kb5 {[%emt 0:00:18]} 1/2-1/2

[Event "Romanian Women Championship 2024"]
[Site "Eforie Nord"]
[Date "2024.02.28"]
[Round "6.10"]
[White "Bira, Andrada-Paraschiva"]
[Black "Iordache, Alexia-Andreea"]
[Result "0-1"]
[ECO "E95"]
[WhiteElo "1590"]
[BlackElo "1769"]
[Annotator "NA RC"]
[PlyCount "74"]
[EventDate "2024.02.24"]
[EventType "swiss"]
[EventCountry "ROU"]
[SourceTitle "playchess.com"]
[Source "ChessBase"]
[SourceQuality "1"]
[TimeControl "40/5400+30:900+30"]

1. d4 {[%emt 0:00:03]} Nf6 {[%emt 0:00:03]} 2. c4 {[%emt 0:00:13]} g6 {[%emt 0:00:01]} 3. Nc3 {[%emt 0:00:22]} Bg7 {[%emt 0:00:04]} 4. e4 {[%emt 0:00:15]} d6 {[%emt 0:00:05]} 5. Nf3 {[%emt 0:00:22]} O-O {[%emt 0:00:04]} 6. Be2 {[%emt 0:00:16]} Nbd7 {[%emt 0:00:30]} 7. O-O {[%emt 0:00:58]} e5 {[%emt 0:00:01]} 8. Re1 {[%emt 0:01:15]} Re8 {[%emt 0:00:25]} 9. Bf1 {[%emt 0:00:55]} h6 {[%emt 0:04:41]} 10. d5 {[%emt 0:04:39]} a5 {[%emt 0:00:41]} 11. Rb1 {[%emt 0:01:39]} Nc5 {[%emt 0:05:23]} 12. b3 {[%emt 0:00:33]} Nh5 {[%emt 0:02:43]} 13. g3 {[%emt 0:03:00]} Kh7 {[%emt 0:05:42]} 14. a3 {[%emt 0:00:17]} f5 {[%emt 0:02:10]} 15. Nh4 {[%emt 0:01:39]} Nf6 {[%emt 0:10:54]} 16. exf5 {[%emt 0:01:46]} g5 {[%emt 0:00:13]} 17. Ng2 {[%emt 0:06:35]} Bxf5 {[%emt 0:00:07]} 18. Rb2 {[%emt 0:01:19]} Nfd7 {[%emt 0:06:57]} 19. b4 {[%emt 0:00:47]} e4 {[%emt 0:03:14]} 20. Bd2 {[%emt 0:13:18]} axb4 {[%emt 0:56:32]} 21. axb4 {[%emt 0:00:26]} Nd3 {[%emt 0:00:00]} 22. Bxd3 {[%emt 0:00:16]} exd3 {[%emt 0:00:00]} 23. Ne3 {[%emt 0:04:52]} Bg6 {[%emt 0:00:00]} 24. Rb1 {[%emt 0:09:01]} Ne5 {[%emt 0:00:00]} 25. Nb5 {[%emt 0:00:29]} Rf8 {[%emt 0:00:00]} 26. Nd4 {[%emt 0:00:31]} Qf6 {[%emt 0:00:00]} 27. Rf1 {[%emt 0:01:46]} Be4 {[%emt 0:00:00]} 28. f4 {[%emt 0:00:55]} gxf4 {[%emt 0:00:00]} 29. Ne6 {[%emt 0:00:20]} Rf7 {[%emt 0:00:00]} 30. Nxf4 {[%emt 0:00:44]} Ra2 {[%emt 0:00:00]} 31. Rf2 {[%emt 0:00:51]} Nf3+ {[%emt 0:00:00]} 32. Kf1 {[%emt 0:00:25]} Qd4 {[%emt 0:00:00]} 33. Rxf3 {[%emt 0:04:19]} Bxf3 {[%emt 0:00:00]} 34. Qe1 {[%emt 0:01:14]} Qe4 {[%emt 0:00:00]} 35. Qf2 {[%emt 0:00:35]} Be2+ {[%emt 0:00:00]} 36. Ke1 {[%emt 0:00:40]} Qh1+ {[%emt 0:00:00]} 37. Nf1 {[%emt 0:00:08]} Bd4 {[%emt 0:00:00]} 0-1

[Event "Romanian Women Championship 2024"]
[Site "Eforie Nord"]
[Date "2024.02.28"]
[Round "6.11"]
[White "Pirvulescu, Ekaterina"]
[Black "Petculescu, Diana-Silvana"]
[Result "1-0"]
[ECO "B90"]
[WhiteElo "2091"]
[BlackElo "1556"]
[Annotator "RC"]
[PlyCount "77"]
[EventDate "2024.02.24"]
[EventType "swiss"]
[EventCountry "ROU"]
[SourceTitle "playchess.com"]
[Source "ChessBase"]
[SourceQuality "1"]
[TimeControl "40/5400+30:900+30"]

1. e4 {[%emt 0:00:02]} c5 {[%emt 0:00:11]} 2. Nf3 {[%emt 0:00:12]} d6 {[%emt 0:00:05]} 3. d4 {[%emt 0:00:08]} cxd4 {[%emt 0:00:17]} 4. Nxd4 {[%emt 0:00:09]} Nf6 {[%emt 0:00:06]} 5. Nc3 {[%emt 0:00:13]} a6 {[%emt 0:00:14]} 6. Be3 {[%emt 0:00:31]} e5 {[%emt 0:00:07]} 7. Nb3 {[%emt 0:00:06]} Be6 {[%emt 0:00:05]} 8. h3 {[%emt 0:00:13]} Be7 {[%emt 0:01:14]} 9. f4 {[%emt 0:00:22]} Nc6 {[%emt 0:09:12]} 10. f5 {[%emt 0:01:46]} Bxb3 {[%emt 0:01:46]} 11. axb3 {[%emt 0:00:16]} Nb4 {[%emt 0:01:25]} 12. g3 {[%emt 0:02:14]} d5 {[%emt 0:02:50]} 13. exd5 {[%emt 0:00:27]} e4 {[%emt 0:01:08]} 14. Bg2 {[%emt 0:09:37]} Qc7 {[%emt 0:02:16]} 15. O-O {[%emt 0:18:58]} Rd8 {[%emt 0:15:38]} 16. Bf4 {[%emt 0:05:22]} Qc5+ {[%emt 0:04:32]} 17. Kh2 {[%emt 0:00:27]} Nbxd5 {[%emt 0:04:27]} 18. Nxd5 {[%emt 0:01:44]} Rxd5 {[%emt 0:10:20]} 19. Qe2 {[%emt 0:02:29]} Rxf5 {[%emt 0:02:17]} 20. Bxe4 {[%emt 0:05:58]} Nxe4 {[%emt 0:01:46]} 21. Qxe4 {[%emt 0:00:04]} Qd5 {[%emt 0:06:16]} 22. Qe2 {[%emt 0:14:02]} g5 {[%emt 0:07:44]} 23. Rae1 {[%emt 0:07:16]} Qd7 {[%emt 0:03:25]} 24. Be5 {[%emt 0:09:58]} Rxf1 {[%emt 0:01:53]} 25. Qxf1 {[%emt 0:00:29]} O-O {[%emt 0:01:33]} 26. Bc3 {[%emt 0:00:31]} b5 {[%emt 0:06:07]} 27. Qe2 {[%emt 0:00:39]} Bd8 {[%emt 0:02:16]} 28. Bb4 {[%emt 0:01:27]} Bc7 {[%emt 0:01:39]} 29. Bxf8 {[%emt 0:00:08]} Kxf8 {[%emt 0:00:03]} 30. Rd1 {[%emt 0:01:02]} Qf5 {[%emt 0:14:38]} 31. Rf1 {[%emt 0:03:33]} Qd5 {[%emt 0:00:00]} 32. Qf3 {[%emt 0:00:54]} Qe6 {[%emt 0:00:00]} 33. Qf6 {[%emt 0:02:19]} Qe2+ {[%emt 0:00:00]} 34. Rf2 {[%emt 0:00:44]} Qh5 {[%emt 0:00:00]} 35. Kg2 {[%emt 0:00:59]} Qg6 {[%emt 0:00:00]} 36. Qxg6 {[%emt 0:01:28]} hxg6 {[%emt 0:00:00]} 37. Rf6 {[%emt 0:00:29]} Be5 {[%emt 0:00:00]} 38. Rxa6 {[%emt 0:00:08]} Bxb2 {[%emt 0:00:00]} 39. Rb6 {[%emt 0:00:07]} 1-0

[Event "Romanian Women Championship 2024"]
[Site "Eforie Nord"]
[Date "2024.02.28"]
[Round "6.12"]
[White "Ardelean, Lorela-Daniela"]
[Black "Badica, Ariana"]
[Result "0-1"]
[ECO "B20"]
[WhiteElo "1802"]
[BlackElo "1494"]
[Annotator "NA RC"]
[PlyCount "72"]
[EventDate "2024.02.24"]
[EventType "swiss"]
[EventCountry "ROU"]
[SourceTitle "playchess.com"]
[Source "ChessBase"]
[SourceQuality "1"]
[TimeControl "40/5400+30:900+30"]

1. e4 {[%emt 0:08:35]} c5 {[%emt 0:00:07]} 2. b3 {[%emt 0:00:03]} d6 {[%emt 0:04:12]} 3. Bb2 {[%emt 0:01:56]} Nf6 {[%emt 0:00:32]} 4. Qe2 {[%emt 0:01:36]} e6 {[%emt 0:01:07]} 5. Nf3 {[%emt 0:01:30]} Nbd7 {[%emt 0:00:55]} 6. d4 {[%emt 0:00:23]} cxd4 {[%emt 0:02:58]} 7. Nxd4 {[%emt 0:00:07]} b6 {[%emt 0:00:53]} 8. Nd2 {[%emt 0:01:51]} Bb7 {[%emt 0:00:28]} 9. f3 {[%emt 0:04:13]} Be7 {[%emt 0:00:42]} 10. Qe3 {[%emt 0:07:17]} Rc8 {[%emt 0:01:36]} 11. Bd3 {[%emt 0:05:07]} O-O {[%emt 0:00:44]} 12. O-O {[%emt 0:02:25]} Qc7 {[%emt 0:00:39]} 13. Rae1 {[%emt 0:01:54]} a6 {[%emt 0:01:14]} 14. Kh1 {[%emt 0:02:24]} Rfe8 {[%emt 0:05:18]} 15. f4 {[%emt 0:03:15]} Bf8 {[%emt 0:01:24]} 16. Qh3 {[%emt 0:02:19]} g6 {[%emt 0:01:54]} 17. N2f3 {[%emt 0:03:23]} e5 {[%emt 0:04:29]} 18. fxe5 dxe5 {[%emt 0:00:55]} 19. Ne2 {[%emt 0:29:18]} Bxe4 {[%emt 0:03:38]} 20. Bxa6 {[%emt 0:04:48]} Ra8 {[%emt 0:00:59]} 21. Bc4 {[%emt 0:00:04]} Bf5 {[%emt 0:03:03]} 22. Qh4 {[%emt 0:00:21]} Rxa2 {[%emt 0:01:43]} 23. Bc1 {[%emt 0:09:02]} Ne4 {[%emt 0:07:31]} 24. Nc3 {[%emt 0:03:05]} Nxc3 {[%emt 0:01:51]} 25. Ng5 {[%emt 0:00:01]} Nf6 {[%emt 0:04:00]} 26. Bxf7+ {[%emt 0:00:10]} Kh8 {[%emt 0:01:16]} 27. Bxe8 {[%emt 0:01:17]} Nxe8 {[%emt 0:00:49]} 28. Rxe5 {[%emt 0:00:01]} Nd6 {[%emt 0:05:14]} 29. g4 {[%emt 0:02:29]} Qb7+ {[%emt 0:01:03]} 30. Kg1 {[%emt 0:00:02]} Rxc2 {[%emt 0:00:47]} 31. Nf3 {[%emt 0:01:08]} Bd3 {[%emt 0:09:24]} 32. Bh6 {[%emt 0:01:03]} Qf7 {[%emt 0:09:42]} 33. Bxf8 {[%emt 0:02:06]} Qxf8 {[%emt 0:01:15]} 34. Re7 {[%emt 0:00:38]} h6 {[%emt 0:04:49]} 35. Rfe1 {[%emt 0:02:01]} Ne2+ {[%emt 0:00:28]} 36. Kh1 {[%emt 0:02:04]} Qxf3# {[%emt 0:00:10]} 0-1

[Event "Romanian Women Championship 2024"]
[Site "Eforie Nord"]
[Date "2024.02.29"]
[Round "7.1"]
[White "Lehaci, Miruna-Daria"]
[Black "Cosma, Elena-Luminita"]
[Result "1/2-1/2"]
[ECO "C11"]
[WhiteElo "2227"]
[BlackElo "2236"]
[Annotator "TA"]
[PlyCount "64"]
[EventDate "2024.02.24"]
[EventType "swiss"]
[EventCountry "ROU"]
[SourceTitle "playchess.com"]
[Source "ChessBase"]
[SourceQuality "1"]
[TimeControl "40/5400+30:900+30"]

{[%evp 12,64,4,0,16,10,28,28,32,30,46,27,24,27,36,26,26,33,37,30,30,21,18,24,34,30,66,83,76,72,80,75,72,68,97,76,76,76,76,76,76,76,76,76,296,287,319,321,282,0,235,0,275,0,215]} 1. e4 {[%emt 0:00:03]} e6 {[%emt 0:00:07]} 2. d4 {[%emt 0:00:06]} d5 {[%emt 0:00:05]} 3. Nc3 {[%emt 0:00:06][%cal Bb1c3,Bc3e2,Be2f4][%mdl 32]} Nf6 {[%emt 0:00:09]} 4. e5 {[%emt 0:00:05]} Nfd7 {[%emt 0:00:06]} 5. Nce2 {[%emt 0:00:08]} c5 {[%emt 0:00:21]} 6. c3 {[%emt 0:00:07]} Nc6 {[%emt 0:00:24]} 7. Nf3 {[%emt 0:00:06]} a5 {[%emt 0:03:16]} 8. a4 {[%emt 0:01:03]} b6 {[%emt 0:07:32]} 9. Nf4 {[%emt 0:23:56]} cxd4 {[%emt 0:07:33] Weiß hat minimalen Vorteil.} 10. cxd4 {[%emt 0:03:33]} Bb4+ {[%emt 0:00:43]} 11. Bd2 {[%emt 0:00:11]} O-O {[%emt 0:01:44]} 12. Bb5 {[%emt 0:02:05]} Bb7 {[%emt 0:03:15]} 13. O-O {[%emt 0:01:39]} Qe7 {[%emt 0:04:51]} 14. Be3 {[%emt 0:03:47]} Rfc8 {[%emt 0:06:18]} 15. Rc1 {[%emt 0:01:49]} Qd8 {[%emt 0:05:14]} 16. h4 {[%emt 0:07:37][%cal Bh2h4,Bh4h5,Bh5h6][%mdl 32]} Nf8 {[%emt 0:09:35]} 17. Ne2 {[%emt 0:11:09]} Be7 {[%emt 0:07:40]} 18. h5 {[%emt 0:03:25]} Nb4 {[%emt 0:04:01]} 19. h6 {[%emt 0:02:48] Und hxg7 würde nun gewinnen.} Rxc1 {[%emt 0:00:55]} 20. Bxc1 {[%emt 0:03:49] [#] Droht stark hxg7.} ({Jedoch nicht} 20. Nxc1 $6 g6 21. Ne2 Bc8 $16) ({Finger weg von} 20. Qxc1 Rc8 21. Qd1 g6 $16) 20... g6 {[%emt 0:00:38]} 21. Nc3 {[%emt 0:00:09]} Rc8 {[%emt 0:01:01]} 22. Be3 $36 {[%emt 0:01:29][%mdl 2048] Weiss kämpft um Vorteil.} Ba6 {[%emt 0:06:40]} 23. Qd2 {[%emt 0:01:38] Weiß steht aktiver.} Bxb5 {[%emt 0:10:01]} 24. axb5 {[%emt 0:00:05]} (24. Nxb5 Rc2 25. Qd1 Rxb2) 24... Rc4 {[%emt 0:00:13]} 25. Bg5 {[%emt 0:02:22]} Nd7 {[%emt 0:10:40]} 26. Bxe7 {[%emt 0:09:51]} Qxe7 {[%emt 0:00:04]} 27. Re1 {[%emt 0:00:15]} f5 $2 {[%emt 0:03:58] [#]} (27... Qe8 $16 28. g3 Qf8) 28. exf6 $18 {[%emt 0:01:22]} Qxf6 {[%emt 0:00:10]} 29. Qe2 {[%emt 0:01:24]} Nf8 {[%emt 0:00:58]} 30. Qd2 {[%emt 0:05:48] Wehrt Qf4 ab} Nd7 {[%emt 0:00:04]} 31. Qe2 {[%emt 0:05:06]} Nf8 {[%emt 0:00:04]} 32. Qd2 {[%emt 0:00:06] Pariert Qf4. Und jetzt Ne5 wäre schön.} Nd7 {[%emt 0:00:39] Gewichteter Fehlerwert: Weiß=0.36/Schwarz=0.18 (sehr präzise) .  Verlustzug:     	---       	Schwarz=1     Ungenau:       	---       	Schwarz=2     OK:         	Weiß=9     	Schwarz=10    Bester:       	Weiß=2     	Schwarz=2} 1/2-1/2

[Event "Romanian Women Championship 2024"]
[Site "Eforie Nord"]
[Date "2024.02.29"]
[Round "7.2"]
[White "Maria, Lia-Alexandra"]
[Black "Sandu, Mihaela"]
[Result "1/2-1/2"]
[ECO "C76"]
[WhiteElo "1937"]
[BlackElo "2265"]
[Annotator "TA"]
[PlyCount "83"]
[EventDate "2024.02.24"]
[EventType "swiss"]
[EventCountry "ROU"]
[SourceTitle "playchess.com"]
[Source "ChessBase"]
[SourceQuality "1"]
[TimeControl "40/5400+30:900+30"]

{[%evp 14,83,43,25,42,32,31,47,65,49,54,56,72,70,72,5,12,16,61,10,85,94,56,0,61,71,71,54,64,60,60,58,59,60,69,62,68,68,62,69,115,87,97,96,218,207,202,230,1587,220,224,212,186,0,80,87,237,52,49,68,71,113,107,0,254,0,0,0,0,0,0,0]} 1. e4 {[%emt 0:00:03]} e5 {[%emt 0:00:06]} 2. Nf3 {[%emt 0:00:03]} Nc6 {[%emt 0:01:00]} 3. Bb5 {[%emt 0:00:08]} a6 {[%emt 0:00:21]} 4. Ba4 {[%emt 0:00:03]} d6 {[%emt 0:02:12]} 5. O-O {[%emt 0:05:44]} Bd7 {[%emt 0:02:25]} 6. c3 {[%emt 0:01:45]} g6 {[%emt 0:00:46]} 7. d4 {[%emt 0:04:23]} Bg7 {[%emt 0:08:02]} 8. h3 {[%emt 0:04:06]} Nge7 {[%emt 0:04:24]} 9. Be3 {[%emt 0:14:56]} O-O {[%emt 0:02:25]} 10. Re1 {[%emt 0:03:04]} b5 {[%emt 0:11:54] White is slightly better.} 11. Bc2 {[%emt 0:01:32]} Qc8 {[%emt 0:01:40]} 12. Nbd2 {[%emt 0:06:18]} exd4 {[%emt 0:02:24]} 13. cxd4 {[%emt 0:03:43]} Nb4 {[%emt 0:00:31]} 14. Nf1 {[%emt 0:08:30]} (14. Bb1 $16) 14... Nxc2 $11 {[%emt 0:04:19]} 15. Qxc2 {[%emt 0:00:07]} Qb7 {[%emt 0:00:05]} 16. Ng3 {[%emt 0:05:03]} (16. Rac1 $14) 16... Rac8 {[%emt 0:05:53]} (16... f5 $11 {keeps the balance.} 17. Bg5 Nc6) 17. Qd2 $16 {[%emt 0:39:32]} f5 18. Bg5 {[%emt 0:00:00]} (18. Bh6 $14 Rce8 19. Bxg7 Kxg7 20. exf5 Nxf5 21. Nxf5+ Rxf5 22. Rac1) 18... Rce8 {[%emt 0:14:16]} ({Better is} 18... fxe4 $11 19. Bxe7 exf3 20. Bxf8 Rxf8) 19. Bxe7 $1 $14 {[%emt 0:00:00]} Rxe7 {[%emt 0:00:06]} 20. exf5 {[%emt 0:00:00]} Rxe1+ {[%emt 0:02:57]} 21. Rxe1 {[%emt 0:00:00] And now fxg6 would win.} Bxf5 {[%emt 0:02:18]} 22. Nxf5 {[%emt 0:00:00]} Rxf5 {[%emt 0:00:28]} 23. Re8+ {[%emt 0:00:00]} Rf8 {[%emt 0:04:16]} 24. Qe3 {[%emt 0:00:00] Qe6+ would now be deadly.} Qd5 {[%emt 0:01:26]} 25. Ng5 $1 {[%emt 0:00:00]} h6 {[%emt 0:21:51]} (25... Qxa2 26. Qe7 Qb1+ (26... Rxe8 $2 27. Qxe8+ Bf8 28. Qd7 $18) 27. Kh2 $18) (25... Bxd4 $2 26. Rxf8+ (26. Qe6+ Qxe6 27. Rxf8+ Kxf8 $18) 26... Kxf8 27. Ne6+ (27. Nxh7+ $2 Kg8 $19) 27... Ke7 28. Nxd4+ $18 (28. Qxd4 Qxe6 29. Qh4+ Kd7 $17)) 26. Rxf8+ {[%emt 0:00:00]} Kxf8 {[%emt 0:04:19][%mdl 4096] Endgame. KQB-KQN} (26... Bxf8 $14 27. Ne6 g5) 27. Ne6+ $16 {[%emt 0:00:00]} Kg8 {[%emt 0:00:06]} 28. Nxc7 {[%emt 0:00:00]} Qxa2 {[%emt 0:00:08]} (28... Qxd4 $16 29. Qxd4 (29. Nxa6 Qd1+ 30. Kh2 Kh7 $16) 29... Bxd4) 29. Qe8+ $18 {[%emt 0:00:00]} Kh7 {[%emt 0:00:16]} 30. Ne6 {[%emt 0:00:00]} Qb1+ {[%emt 0:01:34]} 31. Kh2 {[%emt 0:00:33] Threatening mate with Qe7.} Qf5 {[%emt 0:00:05][%cal Og7d4]} 32. Qd7 {[%emt 0:00:27][%csl LRd6,LRg7]} Qf6 {[%emt 0:00:20] [#]} 33. Nxg7 $2 {[%emt 0:00:10]} (33. Qxd6 $6 a5 $16) (33. b4 $1 $18) 33... Qxg7 {[%emt 0:00:04]} (33... Qf4+ $11 34. Kg1 Qc1+ 35. Kh2 Qf4+ 36. Kh1 Qc1+ 37. Kh2 Qf4+) 34. Qxd6 {[%emt 0:00:08][%cal Od4d5] KQ-KQ. White is more active.} h5 {[%emt 0:01:03]} (34... a5 $16) 35. d5 $2 {[%emt 0:03:49]} (35. Qxa6 Qxd4 36. Qb7+ (36. Qxb5 Qf4+ 37. Kg1 Qc1+ 38. Kh2 Qf4+ 39. Kg1 Qc1+ 40. Kh2 Qf4+ $14) 36... Kh6 $14) (35. b4 $1 $18) 35... Qxb2 $14 {[%emt 0:01:26]} 36. Qe7+ {[%emt 0:01:22]} Kg8 $1 {[%emt 0:00:32]} (36... Qg7 $2 37. d6 $18 (37. Qxg7+ $2 Kxg7 38. f4 b4 $19)) 37. Qe8+ {[%emt 0:02:02]} Kg7 {[%emt 0:00:05][%cal Ob2f6] [#]} 38. Qe7+ {[%emt 0:00:51]} (38. d6 $1 $16 {[%cal Rd6d7]} Qf6 (38... Qxf2 $2 39. Qe7+ Kh6 40. Qe5 $18) 39. Qd7+ Kh6 40. Qc6) 38... Kg8 $1 $18 {[%emt 0:00:04]} 39. f4 $2 {[%emt 0:00:58]} ({White has to play} 39. d6 $18 Qd4 40. Qd8+ Kf7 41. Qd7+ (41. Qe7+ Kg8 $14) 41... Kf8 42. Qc8+ (42. Qe7+ Kg8 $11) 42... Kf7 43. d7 (43. Qxa6 Qf4+ 44. Kh1 Qc1+ 45. Kh2 Qf4+ 46. Kh1 Qc1+ 47. Kh2 Qf4+ $11) 43... Qe5+ 44. g3) 39... Qd4 $11 {[%emt 0:01:29][%csl LRd5,LRf4] The position is equal.} 40. Qe8+ {[%emt 0:00:00]} Kg7 {[%emt 0:00:00]} 41. Qe7+ {[%emt 0:03:19]} Kg8 {[%emt 0:00:33]} 42. Qe8+ {[%emt 0:00:20] Blacks defense is rewarded with a draw.   Weighted Error Value: White=0.37/Black=0.24 (precise) .  Missed win:     	White=3     	---        Mistake:       	White=4     	Black=6      Inaccurate:     	White=1     	Black=1      OK:         	White=10    	Black=12     Best:        	White=4     	Black=5      Strong:       	White=2     	Black=2} 1/2-1/2